[Event "1st Turkish League 2017"]
[Site "Konya"]
[Date "2017.07.18"]
[Round "3"]
[White "Kilic, Efe Mert"]
[Black "Dedebas, Emre Emin"]
[Result "1/2-1/2"]
[ECO "C45"]
[WhiteElo "2287"]
[BlackElo "2322"]
[Annotator "NA"]
[PlyCount "60"]
[EventType "team-tourn"]
[EventCountry "TUR"]
[SourceTitle "playchess.com"]
[Source "ChessBase"]
[SourceQuality "1"]
[TimeControl "5400+30"]

1. e4 {[%emt 0:00:30]} e5 {[%emt 0:01:00]} 2. Nf3 {[%emt 0:00:00]} Nc6 {[%emt 0:00:00]} 3. d4 {[%emt 0:01:00]} exd4 {[%emt 0:00:00]} 4. Nxd4 {[%emt 0:00:30]} Bc5 {[%emt 0:00:30]} 5. Nb3 {[%emt 0:00:30]} Bb6 {[%emt 0:00:00]} 6. Qe2 {[%emt 0:00:30]} d6 {[%emt 0:00:00]} 7. Be3 {[%emt 0:00:30]} Nge7 {[%emt 0:00:00]} 8. Nc3 {[%emt 0:00:30]} O-O {[%emt 0:03:00]} 9. O-O-O {[%emt 0:02:30]} f5 {[%emt 0:10:30]} 10. Bxb6 {[%emt 0:03:30]} axb6 {[%emt 0:00:00]} 11. exf5 {[%emt 0:05:30]} Nxf5 {[%emt 0:04:00]} 12. f4 {[%emt 0:21:30]} Re8 {[%emt 0:24:30]} 13. Qf2 {[%emt 0:01:30]} Be6 {[%emt 0:10:30]} 14. Kb1 {[%emt 0:02:30]} Bxb3 {[%emt 0:09:30]} 15. cxb3 {[%emt 0:02:30]} Ne3 {[%emt 0:04:30]} 16. Bc4+ {[%emt 0:00:30]} Kh8 {[%emt 0:06:30]} 17. Rde1 {[%emt 0:03:30]} Nxc4 {[%emt 0:00:30]} 18. Rxe8+ {[%emt 0:00:30]} Qxe8 {[%emt 0:00:30]} 19. bxc4 {[%emt 0:00:30]} Qf7 {[%emt 0:00:30]} 20. Nd5 {[%emt 0:06:30]} b5 {[%emt 0:01:30]} 21. Qc2 {[%emt 0:06:30]} bxc4 {[%emt 0:02:30]} 22. Qxc4 {[%emt 0:01:30]} Qf5+ {[%emt 0:00:00]} 23. Ka1 {[%emt 0:02:30]} Na5 {[%emt 0:08:01]} 24. Ne3 {[%emt 0:00:30]} Nxc4 {[%emt 0:05:07]} 25. Nxf5 {[%emt 0:00:30]} Rf8 {[%emt 0:04:38]} 26. Rc1 {[%emt 0:00:30]} d5 {[%emt 0:00:22]} 27. b3 {[%emt 0:00:30]} Rxf5 {[%emt 0:04:26]} 28. bxc4 {[%emt 0:00:30]} dxc4 {[%emt 0:00:00]} 29. Rxc4 {[%emt 0:00:30]} c6 {[%emt 0:00:00]} 30. Kb2 {[%emt 0:09:30]} h5 {[%emt 0:00:07]} 1/2-1/2

[Event "1st Turkish League 2017"]
[Site "Konya"]
[Date "2017.07.18"]
[Round "3"]
[White "Keler, Faruk"]
[Black "Metin, Oguz"]
[Result "1-0"]
[ECO "A11"]
[WhiteElo "2262"]
[BlackElo "2052"]
[Annotator "NA"]
[PlyCount "151"]
[EventType "team-tourn"]
[EventCountry "TUR"]
[SourceTitle "playchess.com"]
[Source "ChessBase"]
[SourceQuality "1"]
[TimeControl "5400+30"]

1. Nf3 {[%emt 0:00:30]} d5 {[%emt 0:02:00]} 2. g3 {[%emt 0:00:00]} Bg4 {[%emt 0:01:30]} 3. Bg2 {[%emt 0:00:00]} Nd7 {[%emt 0:00:00]} 4. c4 {[%emt 0:00:30]} e6 {[%emt 0:02:00]} 5. cxd5 {[%emt 0:01:30]} exd5 {[%emt 0:00:30]} 6. O-O {[%emt 0:01:30]} Ngf6 {[%emt 0:01:30]} 7. d3 {[%emt 0:02:30]} Be7 {[%emt 0:05:30]} 8. Nc3 {[%emt 0:00:30]} O-O {[%emt 0:00:30]} 9. h3 {[%emt 0:04:30]} Bxf3 {[%emt 0:03:30]} 10. Bxf3 {[%emt 0:00:30]} c6 {[%emt 0:00:30]} 11. Bg2 {[%emt 0:02:30]} a5 {[%emt 0:02:30]} 12. Qc2 {[%emt 0:03:30]} Nc5 {[%emt 0:02:30]} 13. Rd1 {[%emt 0:05:30]} Ne6 {[%emt 0:20:30]} 14. d4 {[%emt 0:08:30]} Qc7 {[%emt 0:06:30]} 15. h4 {[%emt 0:13:30]} h6 {[%emt 0:07:30]} 16. Bh3 {[%emt 0:09:30]} Bd6 {[%emt 0:01:30]} 17. Kg2 {[%emt 0:04:30]} Rae8 {[%emt 0:03:30]} 18. Qf5 {[%emt 0:00:30]} Ne4 {[%emt 0:01:30]} 19. Nxe4 {[%emt 0:02:30]} dxe4 {[%emt 0:03:30]} 20. Qh5 {[%emt 0:04:30]} c5 {[%emt 0:05:30]} 21. dxc5 {[%emt 0:06:30]} Bxc5 {[%emt 0:02:30]} 22. Rd5 {[%emt 0:00:30]} b6 {[%emt 0:04:30]} 23. e3 {[%emt 0:08:16]} Kh7 {[%emt 0:07:47]} 24. Bd2 {[%emt 0:00:50]} Qc6 {[%emt 0:04:29]} 25. Bc3 {[%emt 0:00:46]} g6 {[%emt 0:00:45]} 26. Qd1 {[%emt 0:00:32]} Nc7 {[%emt 0:03:18]} 27. Rd2 {[%emt 0:01:29]} Ne6 {[%emt 0:01:41]} 28. h5 {[%emt 0:02:02]} Re7 {[%emt 0:00:43]} 29. Qg4 {[%emt 0:02:36]} Ng7 {[%emt 0:00:34]} 30. hxg6+ {[%emt 0:01:12]} fxg6 {[%emt 0:00:06]} 31. Rd7 {[%emt 0:02:19]} Ref7 {[%emt 0:01:50]} 32. Rxf7 {[%emt 0:00:40]} Rxf7 {[%emt 0:00:19]} 33. Rd1 {[%emt 0:00:00]} Nf5 {[%emt 0:02:02]} 34. Rd8 {[%emt 0:00:18]} Bf8 {[%emt 0:00:51]} 35. Qf4 {[%emt 0:01:29]} Bg7 {[%emt 0:01:34]} 36. Bxg7 {[%emt 0:01:39]} Kxg7 {[%emt 0:00:08]} 37. Qe5+ {[%emt 0:00:49]} Qf6 {[%emt 0:00:32]} 38. Qxf6+ {[%emt 0:01:11]} Kxf6 {[%emt 0:00:27]} 39. Bxf5 {[%emt 0:00:29]} Kxf5 {[%emt 0:00:13]} 40. Rd5+ {[%emt 0:00:09]} Ke6 {[%emt 0:00:43]} 41. Rb5 {[%emt 0:00:13]} Rb7 {[%emt 0:00:35]} 42. Kh3 {[%emt 0:01:50]} Kf6 {[%emt 0:00:36]} 43. Kh4 {[%emt 0:00:45]} Rb8 {[%emt 0:00:26]} 44. a4 {[%emt 0:01:02]} Ke6 {[%emt 0:00:30]} 45. b3 {[%emt 0:00:30]} Kd6 {[%emt 0:01:21]} 46. Kg4 {[%emt 0:02:37]} Kc6 {[%emt 0:01:26]} 47. Re5 {[%emt 0:03:50]} Rf8 {[%emt 0:00:30]} 48. Rxe4 {[%emt 0:00:30]} Rxf2 {[%emt 0:00:30]} 49. Re6+ {[%emt 0:00:30]} Kc7 {[%emt 0:00:30]} 50. Rxg6 {[%emt 0:00:30]} Rb2 {[%emt 0:00:00]} 51. Kf5 {[%emt 0:01:22]} Rxb3 {[%emt 0:00:00]} 52. e4 {[%emt 0:00:00]} b5 {[%emt 0:01:55]} 53. axb5 {[%emt 0:00:09]} Rxb5+ {[%emt 0:00:07]} 54. e5 {[%emt 0:00:33]} Rb3 {[%emt 0:00:19]} 55. g4 {[%emt 0:00:14]} a4 {[%emt 0:00:16]} 56. Rxh6 {[%emt 0:00:09]} Rf3+ {[%emt 0:00:55]} 57. Ke4 {[%emt 0:00:26]} Rf1 {[%emt 0:00:17]} 58. Ra6 {[%emt 0:00:21]} Rg1 {[%emt 0:00:45]} 59. Kf5 {[%emt 0:00:30]} Rf1+ {[%emt 0:00:00]} 60. Kg5 {[%emt 0:00:47]} Ra1 {[%emt 0:01:22]} 61. e6 {[%emt 0:00:24]} Kd8 {[%emt 0:00:00]} 62. Ra7 {[%emt 0:00:21]} a3 {[%emt 0:00:00]} 63. Kg6 {[%emt 0:01:55]} a2 {[%emt 0:00:11]} 64. e7+ {[%emt 0:01:23]} Ke8 {[%emt 0:00:30]} 65. g5 {[%emt 0:00:00]} Rg1 {[%emt 0:01:18]} 66. Rxa2 {[%emt 0:00:19]} Kxe7 {[%emt 0:00:30]} 67. Rf2 {[%emt 0:00:30]} Rg3 {[%emt 0:00:00]} 68. Kh6 {[%emt 0:00:00]} Rh3+ {[%emt 0:00:27]} 69. Kg7 {[%emt 0:00:00]} Rg3 {[%emt 0:00:30]} 70. Re2+ {[%emt 0:00:20]} Kd7 {[%emt 0:00:30]} 71. g6 {[%emt 0:00:30]} Rg4 {[%emt 0:00:30]} 72. Kf7 {[%emt 0:00:00]} Rf4+ {[%emt 0:00:00]} 73. Kg8 {[%emt 0:00:00]} Rg4 {[%emt 0:00:00]} 74. g7 {[%emt 0:00:00]} Rg1 {[%emt 0:00:00]} 75. Rh2 {[%emt 0:00:19]} Ke7 {[%emt 0:00:24]} 76. Kh8 {[%emt 0:00:00]} 1-0

[Event "1st Turkish League 2017"]
[Site "Konya"]
[Date "2017.07.18"]
[Round "3"]
[White "Dogan, Nazmi Can"]
[Black "Kitir, Ahmet"]
[Result "1/2-1/2"]
[ECO "C03"]
[WhiteElo "2242"]
[BlackElo "2038"]
[Annotator "NA"]
[PlyCount "140"]
[EventType "team-tourn"]
[EventCountry "TUR"]
[SourceTitle "playchess.com"]
[Source "ChessBase"]
[SourceQuality "1"]
[TimeControl "5400+30"]

1. d4 {[%emt 0:00:30]} e6 {[%emt 0:02:00]} 2. e4 {[%emt 0:02:30]} d5 {[%emt 0:00:00]} 3. Nd2 {[%emt 0:01:30]} Be7 {[%emt 0:00:00]} 4. Ngf3 {[%emt 0:00:30]} c5 {[%emt 0:02:30] C03: French Tarrasch: Unusual Black 3rd moves} 5. exd5 {[%emt 0:07:30]} Qxd5 {[%emt 0:04:30]} 6. Bc4 {[%emt 0:00:30]} Qd8 {[%emt 0:00:30]} 7. Nb3 $146 {[%emt 0:09:30]} ({Predecessor:} 7. O-O cxd4 8. Nb3 Nf6 9. Nbxd4 O-O 10. Qe2 a6 11. Rd1 Qc7 12. Ne5 {1-0 (29) Malakhov,V (2722)-Cori Tello,D (2409) Villafranca 2010}) 7... cxd4 {[%emt 0:00:30]} 8. Nbxd4 {[%emt 0:00:30]} Nc6 {[%emt 0:09:30]} 9. Nb5 {[%emt 0:14:30]} Qxd1+ {[%emt 0:16:30]} 10. Kxd1 {[%emt 0:00:30]} Kf8 {[%emt 0:05:30]} 11. Bf4 {[%emt 0:10:30]} a6 {[%emt 0:06:30]} 12. Nd6 {[%emt 0:02:30]} e5 {[%emt 0:14:30]} 13. Nxc8 {[%emt 0:03:30]} Rxc8 {[%emt 0:00:30]} 14. Bxe5 {[%emt 0:11:30]} Nxe5 {[%emt 0:01:30]} 15. Nxe5 {[%emt 0:00:30]} Bd6 {[%emt 0:03:30]} 16. Nxf7 {[%emt 0:03:30]} Rxc4 {[%emt 0:02:30]} 17. Nxh8 {[%emt 0:00:30]} Nf6 {[%emt 0:05:30]} 18. c3 {[%emt 0:00:30]} Kg8 {[%emt 0:00:30]} 19. Kc2 {[%emt 0:00:30]} Kxh8 {[%emt 0:01:30]} 20. Rad1 {[%emt 0:01:30]} Bf8 {[%emt 0:01:30]} 21. Rd8 {[%emt 0:01:30]} Kg8 {[%emt 0:00:30]} 22. Rb8 {[%emt 0:01:30]} Rc7 {[%emt 0:00:00]} 23. Rd1 {[%emt 0:01:30]} Kf7 {[%emt 0:01:00]} 24. Rbd8 {[%emt 0:04:30]} Bc5 {[%emt 0:03:41]} 25. f3 {[%emt 0:00:30]} Re7 {[%emt 0:00:26]} 26. b4 {[%emt 0:04:50]} Bb6 {[%emt 0:00:35]} 27. R8d3 $11 {[%emt 0:04:16]} Bc7 {[%emt 0:00:02]} 28. h3 {[%emt 0:00:40]} Bf4 {[%emt 0:01:23]} 29. Kb3 {[%emt 0:04:05]} Re2 {[%emt 0:02:14]} 30. Rd4 {[%emt 0:02:44]} g5 {[%emt 0:01:12]} 31. g4 {[%emt 0:02:27]} Ke6 {[%emt 0:07:24]} 32. Rd8 {[%emt 0:01:11]} Rh2 {[%emt 0:01:05]} 33. Re1+ {[%emt 0:01:50]} Kf7 {[%emt 0:00:02]} 34. Ra8 {[%emt 0:00:29]} Rxh3 {[%emt 0:00:49]} 35. Rf1 {[%emt 0:00:55]} Nd5 {[%emt 0:06:03]} 36. Ra7 {[%emt 0:00:24]} Ne3 {[%emt 0:00:46]} 37. Rxb7+ {[%emt 0:00:34]} Ke6 {[%emt 0:00:30]} 38. Rf2 {[%emt 0:00:30]} Nd1 {[%emt 0:00:30]} 39. Rf1 {[%emt 0:00:30]} Ne3 {[%emt 0:00:30]} 40. Rf2 {[%emt 0:01:03]} Nd1 {[%emt 0:00:26]} 41. Re2+ {[%emt 0:00:20]} Kd6 {[%emt 0:00:43]} 42. Ree7 {[%emt 0:00:27]} Nf2 {[%emt 0:01:20]} 43. Rxh7 {[%emt 0:00:17]} Rxf3 {[%emt 0:00:27]} 44. Rh6+ {[%emt 0:00:16]} Ke5 {[%emt 0:00:37]} 45. Kc4 {[%emt 0:00:44]} Nxg4 {[%emt 0:00:25]} 46. Rxa6 {[%emt 0:00:38]} Ne3+ {[%emt 0:00:30]} 47. Kc5 {[%emt 0:00:30]} Nd5 {[%emt 0:00:30]} 48. c4 {[%emt 0:00:30]} Be3+ {[%emt 0:00:30]} 49. Kb5 {[%emt 0:00:30]} Nc3+ {[%emt 0:00:30]} 50. Ka5 {[%emt 0:00:30]} Nxa2 {[%emt 0:00:00]} 51. Re7+ {[%emt 0:01:04]} Kd4 {[%emt 0:00:00]} 52. c5 {[%emt 0:00:32]} Bf4 {[%emt 0:00:35]} 53. Kb5 {[%emt 0:00:56]} Nc3+ {[%emt 0:00:30]} 54. Kc6 {[%emt 0:00:00]} Rh3 {[%emt 0:01:16]} 55. Kb7 {[%emt 0:00:08]} Nd5 {[%emt 0:00:34]} 56. Rd7 {[%emt 0:01:14]} Rb3 {[%emt 0:00:26]} 57. Kc6 {[%emt 0:00:00]} Rxb4 {[%emt 0:00:57]} 58. Rxd5+ {[%emt 0:00:00]} Ke4 {[%emt 0:00:00]} 59. Rd8 {[%emt 0:00:44]} g4 {[%emt 0:00:02]} 60. Rg8 {[%emt 0:00:12]} Kf3 {[%emt 0:00:50]} 61. Ra3+ {[%emt 0:00:30]} Be3 {[%emt 0:00:09]} 62. Rf8+ {[%emt 0:00:42]} Rf4 {[%emt 0:00:14]} 63. Re8 {[%emt 0:00:32]} Re4 {[%emt 0:00:04]} 64. Rxe4 {[%emt 0:00:28]} Kxe4 {[%emt 0:00:02]} 65. Kd6 {[%emt 0:01:01]} g3 {[%emt 0:00:15]} 66. c6 {[%emt 0:00:17]} g2 {[%emt 0:00:04]} 67. Ra1 {[%emt 0:00:10]} g1=Q {[%emt 0:00:48]} 68. Rxg1 {[%emt 0:00:30]} Bxg1 {[%emt 0:00:30]} 69. c7 {[%emt 0:00:30]} Bh2+ {[%emt 0:00:30]} 70. Kc5 {[%emt 0:00:30]} Bxc7 {[%emt 0:00:00]} 1/2-1/2

[Event "1st Turkish League 2017"]
[Site "Konya"]
[Date "2017.07.18"]
[Round "3"]
[White "Erden, Kadir"]
[Black "Gulbas, Cemil"]
[Result "1/2-1/2"]
[ECO "D00"]
[WhiteElo "2235"]
[BlackElo "2366"]
[Annotator "NA"]
[PlyCount "97"]
[EventType "team-tourn"]
[EventCountry "TUR"]
[SourceTitle "playchess.com"]
[Source "ChessBase"]
[SourceQuality "1"]
[TimeControl "5400+30"]

1. d4 {[%emt 0:00:30]} d5 {[%emt 0:01:00]} 2. Bf4 {[%emt 0:00:00]} Nf6 {[%emt 0:01:30]} 3. e3 {[%emt 0:00:00]} c5 {[%emt 0:00:00]} 4. c3 {[%emt 0:04:30]} Nc6 {[%emt 0:00:00]} 5. Nd2 {[%emt 0:00:30]} g6 {[%emt 0:12:30]} 6. Ngf3 {[%emt 0:02:30]} Bg7 {[%emt 0:02:30]} 7. h3 {[%emt 0:01:30]} O-O {[%emt 0:01:30]} 8. Be2 {[%emt 0:00:30]} b6 {[%emt 0:07:30]} 9. Ne5 {[%emt 0:01:30]} Bb7 {[%emt 0:00:30]} 10. Nxc6 {[%emt 0:03:30]} Bxc6 {[%emt 0:00:30]} 11. Be5 {[%emt 0:00:30]} Qd7 {[%emt 0:06:30]} 12. O-O {[%emt 0:03:30]} Bb5 {[%emt 0:05:30]} 13. a4 {[%emt 0:00:30]} Bxe2 {[%emt 0:00:30]} 14. Qxe2 {[%emt 0:00:30]} a5 {[%emt 0:13:30]} 15. Rfd1 {[%emt 0:03:30]} cxd4 {[%emt 0:01:30]} 16. Bxd4 {[%emt 0:18:30]} Qe6 {[%emt 0:08:30]} 17. Qb5 {[%emt 0:01:30]} Rfd8 {[%emt 0:09:30]} 18. c4 {[%emt 0:38:46]} Rab8 {[%emt 0:02:30]} 19. cxd5 {[%emt 0:02:53]} Rxd5 {[%emt 0:01:30]} 20. Qf1 {[%emt 0:04:30]} Nd7 {[%emt 0:07:11]} 21. Nf3 {[%emt 0:00:55]} Nc5 {[%emt 0:02:00]} 22. Bxg7 {[%emt 0:02:03]} Kxg7 {[%emt 0:00:11]} 23. Rxd5 {[%emt 0:01:38]} Qxd5 {[%emt 0:00:06]} 24. Qb5 {[%emt 0:00:00]} Qb3 {[%emt 0:01:01]} 25. Nd4 {[%emt 0:00:32]} Qxb5 {[%emt 0:00:25]} 26. axb5 {[%emt 0:00:11]} Rd8 {[%emt 0:00:31]} 27. b4 {[%emt 0:03:34]} axb4 {[%emt 0:00:32]} 28. Nc6 {[%emt 0:00:04]} Rd2 {[%emt 0:02:03]} 29. Nxb4 {[%emt 0:00:05]} Rb2 {[%emt 0:04:40]} 30. Nd5 {[%emt 0:00:16]} Rxb5 {[%emt 0:02:39]} 31. Nxe7 {[%emt 0:00:30]} Rb2 {[%emt 0:00:00]} 32. f3 {[%emt 0:04:03]} b5 {[%emt 0:00:50]} 33. Rc1 {[%emt 0:00:22]} Nd3 {[%emt 0:00:00]} 34. Rd1 {[%emt 0:00:51]} Ne5 {[%emt 0:00:07]} 35. f4 {[%emt 0:01:05]} Nc4 {[%emt 0:00:14]} 36. Nd5 {[%emt 0:00:05]} Nd2 {[%emt 0:03:44]} 37. Kh2 {[%emt 0:01:36]} h5 {[%emt 0:00:20]} 38. h4 {[%emt 0:00:21]} Ne4 {[%emt 0:00:56]} 39. Rd4 {[%emt 0:00:38]} Nf2 {[%emt 0:00:47]} 40. Kg3 {[%emt 0:00:30]} Nh1+ {[%emt 0:03:11]} 41. Kh2 {[%emt 0:00:50]} Nf2 {[%emt 0:00:30]} 42. Kg3 {[%emt 0:00:00]} Ng4 {[%emt 0:00:18]} 43. Kf3 {[%emt 0:00:04]} Rf2+ {[%emt 0:01:04]} 44. Kg3 {[%emt 0:00:06]} Rb2 {[%emt 0:01:02]} 45. Kf3 {[%emt 0:00:11]} Nh2+ {[%emt 0:00:44]} 46. Kg3 {[%emt 0:00:39]} Nf1+ {[%emt 0:00:16]} 47. Kf3 {[%emt 0:00:48]} Nd2+ {[%emt 0:00:30]} 48. Kg3 {[%emt 0:00:30]} Nf1+ {[%emt 0:00:30]} 49. Kf3 {[%emt 0:00:00]} 1/2-1/2

[Event "1st Turkish League 2017"]
[Site "Konya"]
[Date "2017.07.19"]
[Round "3"]
[White "Bayram, Yakup"]
[Black "Keles, Cengiz"]
[Result "0-1"]
[ECO "D06"]
[WhiteElo "2232"]
[BlackElo "2124"]
[Annotator "NA"]
[PlyCount "96"]
[EventType "team-tourn"]
[EventCountry "TUR"]
[SourceTitle "playchess.com"]
[Source "ChessBase"]
[SourceQuality "1"]
[TimeControl "5400+30"]

1. d4 {[%emt 0:00:30]} d5 {[%emt 0:01:00]} 2. c4 {[%emt 0:00:00]} Nf6 {[%emt 0:01:30]} 3. cxd5 {[%emt 0:00:00]} Nxd5 {[%emt 0:00:00]} 4. Nf3 {[%emt 0:00:00]} Bf5 {[%emt 0:03:00]} 5. Nbd2 {[%emt 0:13:00]} Nb6 {[%emt 0:04:30]} 6. e4 {[%emt 0:15:30]} Bg4 {[%emt 0:05:30]} 7. h3 {[%emt 0:00:30]} Bxf3 {[%emt 0:01:30]} 8. Nxf3 {[%emt 0:00:30]} e6 {[%emt 0:00:00]} 9. Bb5+ {[%emt 0:08:30]} c6 {[%emt 0:02:00]} 10. Bd3 {[%emt 0:00:00]} Be7 {[%emt 0:02:30]} 11. O-O {[%emt 0:02:00]} O-O {[%emt 0:00:30]} 12. Qe2 {[%emt 0:02:30]} N8d7 {[%emt 0:11:30]} 13. Rd1 {[%emt 0:10:30]} Re8 {[%emt 0:03:30]} 14. a4 {[%emt 0:09:30]} a5 {[%emt 0:01:30]} 15. Bd2 {[%emt 0:00:30]} Qc7 {[%emt 0:04:30]} 16. Qe1 {[%emt 0:01:30]} e5 {[%emt 0:07:30]} 17. dxe5 {[%emt 0:04:30]} Nxe5 {[%emt 0:00:30]} 18. Nxe5 {[%emt 0:00:30]} Qxe5 {[%emt 0:00:30]} 19. Bc3 {[%emt 0:05:30]} Qg5 {[%emt 0:01:30]} 20. Qd2 {[%emt 0:02:30]} Red8 {[%emt 0:05:30]} 21. Qxg5 {[%emt 0:00:30]} Bxg5 {[%emt 0:04:30]} 22. Bc2 {[%emt 0:02:30]} Nd7 {[%emt 0:04:30]} 23. g3 {[%emt 0:00:00]} Bf6 {[%emt 0:00:00]} 24. f4 {[%emt 0:02:11]} Bxc3 {[%emt 0:01:00]} 25. bxc3 {[%emt 0:00:30]} Nc5 {[%emt 0:00:00]} 26. Kf2 {[%emt 0:00:00]} Kf8 {[%emt 0:00:00]} 27. Ke3 {[%emt 0:00:25]} Ke7 {[%emt 0:02:30]} 28. c4 {[%emt 0:03:47]} h6 {[%emt 0:00:30]} 29. e5 {[%emt 0:03:38]} Rxd1 {[%emt 0:03:30]} 30. Rxd1 {[%emt 0:00:14]} Rd8 {[%emt 0:01:30]} 31. Rxd8 {[%emt 0:00:30]} Kxd8 {[%emt 0:00:00]} 32. f5 {[%emt 0:00:25]} Kd7 {[%emt 0:01:00]} 33. g4 {[%emt 0:00:28]} Ke7 {[%emt 0:01:30]} 34. h4 {[%emt 0:02:20]} Kd7 {[%emt 0:04:30]} 35. Kf4 {[%emt 0:00:45]} Ke7 {[%emt 0:01:30]} 36. g5 {[%emt 0:00:18]} hxg5+ {[%emt 0:01:30]} 37. Kxg5 {[%emt 0:00:12]} Nd7 {[%emt 0:02:30]} 38. f6+ {[%emt 0:05:54]} gxf6+ {[%emt 0:04:30]} 39. exf6+ {[%emt 0:00:06]} Kf8 {[%emt 0:02:48]} 40. h5 {[%emt 0:04:26]} Kg8 {[%emt 0:08:30]} 41. Bf5 {[%emt 0:01:51]} Nb6 {[%emt 0:00:30]} 42. Bd3 {[%emt 0:00:30]} Nxa4 {[%emt 0:00:30]} 43. h6 {[%emt 0:00:39]} Nc5 {[%emt 0:01:53]} 44. h7+ {[%emt 0:01:00]} Kh8 {[%emt 0:00:30]} 45. Bf5 {[%emt 0:00:47]} a4 {[%emt 0:00:44]} 46. Kf4 {[%emt 0:00:12]} a3 {[%emt 0:01:51]} 47. Bb1 {[%emt 0:00:12]} Nd3+ {[%emt 0:00:54]} 48. Ke4 {[%emt 0:00:30]} Nb4 {[%emt 0:01:18]} 0-1

[Event "1st Turkish League 2017"]
[Site "Konya"]
[Date "2017.07.18"]
[Round "3"]
[White "Isik, Alparslan"]
[Black "Nalbant, Tuna Onat"]
[Result "1/2-1/2"]
[ECO "A30"]
[WhiteElo "2211"]
[BlackElo "2037"]
[Annotator "NA"]
[PlyCount "87"]
[EventType "team-tourn"]
[EventCountry "TUR"]
[SourceTitle "playchess.com"]
[Source "ChessBase"]
[SourceQuality "1"]
[TimeControl "5400+30"]

1. Nf3 {[%emt 0:00:30]} Nf6 {[%emt 0:01:00]} 2. c4 {[%emt 0:00:00]} c5 {[%emt 0:00:30]} 3. Nc3 {[%emt 0:00:00]} b6 {[%emt 0:00:30]} 4. g3 {[%emt 0:03:30]} Bb7 {[%emt 0:00:30]} 5. Bg2 {[%emt 0:00:00]} e6 {[%emt 0:00:30]} 6. O-O {[%emt 0:03:00]} Be7 {[%emt 0:00:30]} 7. d4 {[%emt 0:00:00]} cxd4 {[%emt 0:01:30]} 8. Qxd4 {[%emt 0:00:00]} d6 {[%emt 0:03:30]} 9. Bg5 {[%emt 0:05:30]} h6 {[%emt 0:08:30]} 10. Bxf6 {[%emt 0:01:30]} Bxf6 {[%emt 0:00:00]} 11. Qd3 {[%emt 0:00:30]} a6 {[%emt 0:06:00]} 12. Rfd1 {[%emt 0:01:30]} Be7 {[%emt 0:00:30]} 13. Ne4 {[%emt 0:07:30]} Bxe4 {[%emt 0:03:30]} 14. Qxe4 {[%emt 0:00:30]} Ra7 {[%emt 0:00:30]} 15. Nd4 {[%emt 0:01:30]} O-O {[%emt 0:05:30]} 16. b3 {[%emt 0:10:30]} Bf6 {[%emt 0:05:30]} 17. Rac1 {[%emt 0:06:30]} Rc7 {[%emt 0:13:30]} 18. Rc2 {[%emt 0:04:30]} Qe7 {[%emt 0:02:30]} 19. Rcd2 {[%emt 0:03:30]} Rd8 {[%emt 0:01:30]} 20. Qe3 {[%emt 0:03:30]} Rdd7 {[%emt 0:09:30]} 21. h4 {[%emt 0:08:30]} Rc5 {[%emt 0:01:30]} 22. a4 {[%emt 0:04:30]} Kh7 {[%emt 0:12:30]} 23. Be4+ {[%emt 0:03:30]} g6 {[%emt 0:00:30]} 24. Qf3 {[%emt 0:01:30]} Kg7 {[%emt 0:04:37]} 25. Qd3 {[%emt 0:02:30]} d5 {[%emt 0:03:10]} 26. cxd5 {[%emt 0:03:30]} exd5 {[%emt 0:00:30]} 27. Bf3 {[%emt 0:00:30]} a5 {[%emt 0:00:30]} 28. h5 {[%emt 0:00:30]} Qe5 {[%emt 0:00:30]} 29. hxg6 {[%emt 0:00:30]} fxg6 {[%emt 0:00:30]} 30. Bg4 {[%emt 0:00:30]} Rd6 {[%emt 0:00:30]} 31. Nf3 {[%emt 0:00:30]} Qe7 {[%emt 0:00:30]} 32. Nd4 {[%emt 0:00:30]} Qe5 {[%emt 0:08:24]} 33. Nb5 {[%emt 0:11:17]} Rd8 {[%emt 0:00:43]} 34. f4 {[%emt 0:00:21]} Qe8 {[%emt 0:03:04]} 35. Nd4 {[%emt 0:01:26]} Bxd4+ {[%emt 0:02:03]} 36. Qxd4+ {[%emt 0:00:30]} Kh7 {[%emt 0:00:00]} 37. Bf3 {[%emt 0:02:03]} Qe6 {[%emt 0:01:35]} 38. Qf2 {[%emt 0:04:25]} Nc6 {[%emt 0:00:35]} 39. Rd3 {[%emt 0:02:03]} Nb4 {[%emt 0:00:29]} 40. Re3 {[%emt 0:01:24]} Qf7 {[%emt 0:00:29]} 41. Re5 {[%emt 0:01:08]} Re8 {[%emt 0:00:30]} 42. Rxe8 {[%emt 0:00:30]} Qxe8 {[%emt 0:00:30]} 43. Qd4 {[%emt 0:00:30]} Qe6 {[%emt 0:00:30]} 44. Kh2 {[%emt 0:02:56]} 1/2-1/2

[Event "1st Turkish League 2017"]
[Site "Konya"]
[Date "2017.07.18"]
[Round "3"]
[White "Sakir, Ridvan"]
[Black "Gunduz, Umut Erdem"]
[Result "1-0"]
[ECO "C41"]
[WhiteElo "2132"]
[BlackElo "2066"]
[Annotator "NA"]
[PlyCount "63"]
[EventType "team-tourn"]
[EventCountry "TUR"]
[SourceTitle "playchess.com"]
[Source "ChessBase"]
[SourceQuality "1"]
[TimeControl "5400+30"]

1. e4 {[%emt 0:00:30]} e5 {[%emt 0:01:00]} 2. Nf3 {[%emt 0:00:00]} d6 {[%emt 0:00:30]} 3. d4 {[%emt 0:00:00]} Nd7 {[%emt 0:00:00]} 4. Bc4 {[%emt 0:01:30]} c6 {[%emt 0:00:00]} 5. a4 {[%emt 0:01:30]} a5 {[%emt 0:00:00]} 6. Nc3 {[%emt 0:00:30]} Be7 {[%emt 0:00:00]} 7. O-O {[%emt 0:00:30]} Ngf6 {[%emt 0:00:30]} 8. Re1 {[%emt 0:01:30]} O-O {[%emt 0:00:30]} 9. h3 {[%emt 0:00:30]} h6 {[%emt 0:05:30]} 10. Be3 {[%emt 0:02:30]} exd4 {[%emt 0:18:30]} 11. Bxd4 {[%emt 0:03:30]} Qc7 {[%emt 0:11:30]} 12. e5 {[%emt 0:10:30]} dxe5 {[%emt 0:00:30]} 13. Nxe5 {[%emt 0:00:30]} Nc5 {[%emt 0:00:30]} 14. Ng6 {[%emt 0:02:30]} Be6 {[%emt 0:09:30]} 15. Bxe6 {[%emt 0:03:30]} Nxe6 {[%emt 0:01:30]} 16. Nxf8 {[%emt 0:00:30]} Rxf8 {[%emt 0:00:30]} 17. Be3 {[%emt 0:03:30]} Bb4 {[%emt 0:04:30]} 18. Qd3 {[%emt 0:05:30]} Rd8 {[%emt 0:02:30]} 19. Qc4 {[%emt 0:01:30]} Nd7 {[%emt 0:08:30]} 20. Rad1 {[%emt 0:02:30]} Rf8 {[%emt 0:00:30]} 21. Re2 {[%emt 0:10:30]} Ne5 {[%emt 0:01:30]} 22. Qb3 {[%emt 0:02:30]} Ng6 {[%emt 0:15:16]} 23. Ne4 {[%emt 0:11:30]} Qe5 {[%emt 0:03:05]} 24. Ng3 {[%emt 0:00:30]} Qf6 {[%emt 0:01:41]} 25. c3 {[%emt 0:02:30]} Be7 {[%emt 0:00:41]} 26. Qxb7 {[%emt 0:00:30]} Nh4 {[%emt 0:01:17]} 27. Bd4 {[%emt 0:06:30]} Nxd4 {[%emt 0:02:01]} 28. cxd4 {[%emt 0:03:30]} Bb4 {[%emt 0:01:47]} 29. Qd7 {[%emt 0:01:30]} g6 {[%emt 0:02:08]} 30. Re8 {[%emt 0:01:30]} h5 {[%emt 0:01:15]} 31. Rxf8+ {[%emt 0:01:30]} Kxf8 {[%emt 0:00:02]} 32. Qc7 {[%emt 0:01:58]} 1-0